{"text_format":"1","workbook":"xlsx","n_sheets":4,"sheets":["Achtung","1.-8. Spieler","Wichtig - Bestätigung - eMail","ab 9. Spieler"],"not_rendered":{"charts":0,"images":2,"macros":1,"external_links":0,"defined_names":2,"comments":3,"pivot_tables":0},"unopened":[],"bounds":{"document_bytes":16777216,"sheet_cells":100000,"rows_first":2000,"rows_last":500,"rows_between":2000,"halvings":0,"cell_chars":16384,"cell_head_chars":4096},"cells_cut":0,"cells_raw":0,"read":"whole","date_system":"1900"}

{"sheet":"Achtung","index":0,"n_rows":23,"n_cols":1,"rows_kept":23,"cut":false,"hidden":false,"merged":[]}
[]
["Liebe Dartfreunde,"]
[]
["bitte unbedingt folgende Punkte beachten:"]
[]
["1. Das alte Anmeldeformular ist ab sofort nicht mehr gültig."]
[]
["2. Die Anmeldung besteht immer aus 2 Seiten (ab 9 Spieler 3 Seiten)."]
[]
["3. Die Anmeldung ist nur gültig, wenn alle Seiten unterschrieben der Ligaleitung vorliegen."]
[]
["4. Vielen Dank für das leserliche, vollständige und korrekte ausfüllen."]
[]
["5. Wenn Ihr die Anmeldung im Computer ausfüllt erspart Ihr Euch in der nächsten Saison viel Arbeit."]
[]
["6. Das Formular 3 x Ausdrucken/Ausfüllen oder 2 x kopieren sodaß die Ligaleitung, Team und Lokal"]
["    jeder seine Formular hat. Original erhält die Ligaleitung."]
["    Michael \"Mike\" Stritzel, Ziegelstr. 75, 73084 Salach"]
[]
[]
["Sportliche Grüße"]
[]
["DSAB Filstal-Liga"]

{"sheet":"1.-8. Spieler","index":1,"n_rows":55,"n_cols":41,"rows_kept":55,"cut":false,"hidden":false,"merged":[[44,32,44,39],[40,4,40,18],[40,25,40,39],[41,5,41,8],[41,12,41,18],[41,26,41,29],[41,33,41,39],[38,6,38,18],[38,27,38,39],[39,5,39,18],[39,26,39,39],[42,3,42,18],[42,24,42,39],[34,3,34,18],[34,24,34,39],[37,4,37,9],[37,16,37,18],[37,25,37,30],[37,37,37,39],[36,32,36,39],[32,4,32,18],[32,25,32,39],[33,5,33,8],[33,12,33,18],[33,26,33,29],[33,33,33,39],[29,25,29,30],[29,37,29,39],[30,6,30,18],[30,27,30,39],[29,4,29,9],[31,5,31,18],[31,26,31,39],[23,5,23,18],[24,4,24,18],[25,5,25,8],[25,12,25,18],[26,3,26,18],[29,16,29,18],[25,33,25,39],[24,25,24,39],[51,5,51,17],[52,5,52,17],[53,8,53,9],[54,5,54,6],[54,1,54,4],[54,12,54,17],[13,4,13,9],[15,26,15,39],[47,5,48,17],[46,22,47,25],[49,5,49,17],[50,5,50,17],[48,22,48,25],[21,4,21,9],[21,16,21,18],[22,6,22,18],[18,3,18,18],[17,5,17,8],[17,12,17,18],[15,5,15,18],[16,25,16,39],[13,25,13,30],[14,27,14,39],[13,37,13,39],[21,25,21,30],[21,37,21,39],[22,27,22,39],[23,26,23,39],[4,33,4,36],[8,25,8,38],[4,37,4,38],[4,12,4,20],[7,25,7,38],[18,24,18,39],[17,26,17,29],[17,33,17,39],[16,4,16,18],[9,8,9,10],[7,5,7,17],[8,5,8,17],[10,6,10,14],[10,16,10,20],[4,25,4,28],[48,27,48,38],[46,5,46,17],[47,1,48,4],[0,40,54,40],[49,22,49,39],[54,22,54,39],[1,22,1,39],[12,0,12,39],[6,0,6,39],[36,11,36,20],[4,4,4,8],[2,24,2,28],[2,32,2,36],[45,21,45,39],[45,0,45,18],[44,11,44,20],[28,11,28,20],[20,11,20,20],[28,32,28,39],[20,32,20,39],[26,24,26,39],[14,6,14,18],[13,16,13,18],[25,26,25,29]]}
[null,null,null,null,null,null,null,null,null,null,null,null,null,null,null,null,null,null,null,null,null,null,null,null,null,null,null,null,null,null,null,null,null,null,null,null,null,null,null,"DSAB Filstal-Liga","Copyright by DSAB-Filstal-Liga - V1.7 - Original für Ligasekretär. Eine Kopie für Automatenunternehmer und eine Kopie für Team erstellen! - ***Falls keine Auswahl erfolgt Versand zum Wirt - **Kostenpflichtig - * freiwillige Angaben (Ausnahme Kapitän)"]
[null,null,null,null,null,null,null,null,null,null,null,null,null,null,null,null,null,null,null,null,null,null,"Team-Anmeldung"]
[null,null,null,null,null,null,null,null,null,null,null,null,null,null,null,null,null,null,null,null,null,null,"Seite ",null,1,null,null,null,null,null,"von",null,{"$f":"IF('Wichtig - Bestätigung - eMail'!A34>8,\"3\",\"2\")","v":"2"},null,null,null,null,null,"Seiten"]
[]
[null,"Saison:",null,null,null,null,null,null,null,null,"Klasse:",null,null,null,null,null,null,null,null,null,null,null,"Sportart:",null,null,"Dart",null,null,null,null,"Disziplin:",null,null,null,null,null,null,{"$f":"'Wichtig - Bestätigung - eMail'!A34","v":0}]
[]
["Team"]
[null,"Team-Name:",null,null,null,null,null,null,null,null,null,null,null,null,null,null,null,null,null,null,null,"Team-Fax:"]
[null,"Kapitän:",null,null,null,null,null,null,null,null,null,null,null,null,null,null,null,null,null,null,null,"Team-eMail:"]
[null,"Beginn der Liga-Spiele um",null,null,null,null,null,null,null,null,null,"Uhr.",null,null,null,null,null,null,null,null,null,"Ligapost Empfänger***:",null,null,null,null,null,null,"o","Kapitän",null,null,"o","Wirt"]
[null,"alter Team-Name:",null,null,null,null,null,null,null,null,null,null,null,null,null,"/",null,null,null,null,null,"Tabelle:",null,null,"o","Selbstabholer Internet",null,null,null,null,null,null,"o","Fax**",null,null,"o","Post**"]
[null,"(falls Team-Name verändert wurde)",null,null,null,null,null,null,null,null,null,null,null,null,null,null,null,null,null,"(letzte Liga-Klasse)",null,"B/C-Liga-Spiele auf:",null,null,null,null,null,"o","1 Automat",null,null,"o","2 Automaten wenn Gast zustimmt"]
["Spieler - Wichtig: Im Feld \"zurückliegende Klasse\" bitte  C / B / A / BZ / BZO / BL / NEU oder ? eintragen !"]
[null,"DSAB-Nr.: ",null,null,null,null,null,null,null,null,null,null,null,null,null,"zurückliegende Klasse:",null,null,null,null,null,null,"DSAB-Nr.: ",null,null,null,null,null,null,null,null,null,null,null,null,null,"zurückliegende Klasse:"]
[null,"Vorname / Name:",null,null,null,null,null,null,null,null,null,null,null,null,null,null,null,null,null,null,null,null,"Vorname / Name:"]
[null,"Strasse / Nr.:",null,null,null,null,null,null,null,null,null,null,null,null,null,null,null,null,null,null,null,null,"Strasse / Nr.:"]
[null,"PLZ / Ort:",null,null,null,null,null,null,null,null,null,null,null,null,null,null,null,null,null,null,null,null,"PLZ / Ort:"]
[null,"Geburtsdatum: ",null,null,null,null,null,null,null,null,null,"Telefon*: ",null,null,null,null,null,null,null,null,null,null,"Geburtsdatum: ",null,null,null,null,null,null,null,null,null,"Telefon*: "]
[null,"eMail*: ",null,null,null,null,null,null,null,null,null,null,null,null,null,null,null,null,null,null,null,null,"eMail*: "]
[null,"Internetzugang*:",null,null,null,null,"o","ja","o","nein",null,null,null,null,null,null,null,null,null,null,null,null,"Internetzugang*:",null,null,null,null,"o","ja","o","nein"]
[null,"Beitrag 7 €: ",null,null,"o","anbei",null,"o","über Bank",null,null,"Unterschrift Spieler / in",null,null,null,null,null,null,null,null,null,null,"Beitrag 7 €: ",null,null,"o","anbei",null,"o","über Bank",null,null,"Unterschrift Spieler / in"]
[null,"DSAB-Nr.: ",null,null,null,null,null,null,null,null,null,null,null,null,null,"zurückliegende Klasse:",null,null,null,null,null,null,"DSAB-Nr.: ",null,null,null,null,null,null,null,null,null,null,null,null,null,"zurückliegende Klasse:"]
[null,"Vorname / Name:",null,null,null,null,null,null,null,null,null,null,null,null,null,null,null,null,null,null,null,null,"Vorname / Name:"]
[null,"Strasse / Nr.:",null,null,null,null,null,null,null,null,null,null,null,null,null,null,null,null,null,null,null,null,"Strasse / Nr.:"]
[null,"PLZ / Ort:",null,null,null,null,null,null,null,null,null,null,null,null,null,null,null,null,null,null,null,null,"PLZ / Ort:"]
[null,"Geburtsdatum: ",null,null,null,null,null,null,null,null,null,"Telefon*: ",null,null,null,null,null,null,null,null,null,null,"Geburtsdatum: ",null,null,null,null,null,null,null,null,null,"Telefon*: "]
[null,"eMail*: ",null,null,null,null,null,null,null,null,null,null,null,null,null,null,null,null,null,null,null,null,"eMail*: "]
[null,"Internetzugang*:",null,null,null,null,"o","ja","o","nein",null,null,null,null,null,null,null,null,null,null,null,null,"Internetzugang*:",null,null,null,null,"o","ja","o","nein"]
[null,"Beitrag 7 €: ",null,null,"o","anbei",null,"o","über Bank",null,null,"Unterschrift Spieler / in",null,null,null,null,null,null,null,null,null,null,"Beitrag 7 €: ",null,null,"o","anbei",null,"o","über Bank",null,null,"Unterschrift Spieler / in"]
[null,"DSAB-Nr.: ",null,null,null,null,null,null,null,null,null,null,null,null,null,"zurückliegende Klasse:",null,null,null,null,null,null,"DSAB-Nr.: ",null,null,null,null,null,null,null,null,null,null,null,null,null,"zurückliegende Klasse:"]
[null,"Vorname / Name:",null,null,null,null,null,null,null,null,null,null,null,null,null,null,null,null,null,null,null,null,"Vorname / Name:"]
[null,"Strasse / Nr.:",null,null,null,null,null,null,null,null,null,null,null,null,null,null,null,null,null,null,null,null,"Strasse / Nr.:"]
[null,"PLZ / Ort:",null,null,null,null,null,null,null,null,null,null,null,null,null,null,null,null,null,null,null,null,"PLZ / Ort:"]
[null,"Geburtsdatum: ",null,null,null,null,null,null,null,null,null,"Telefon*: ",null,null,null,null,null,null,null,null,null,null,"Geburtsdatum: ",null,null,null,null,null,null,null,null,null,"Telefon*: "]
[null,"eMail*: ",null,null,null,null,null,null,null,null,null,null,null,null,null,null,null,null,null,null,null,null,"eMail*: "]
[null,"Internetzugang*:",null,null,null,null,"o","ja","o","nein",null,null,null,null,null,null,null,null,null,null,null,null,"Internetzugang*:",null,null,null,null,"o","ja","o","nein"]
[null,"Beitrag 7 €: ",null,null,"o","anbei",null,"o","über Bank",null,null,"Unterschrift Spieler / in",null,null,null,null,null,null,null,null,null,null,"Beitrag 7 €: ",null,null,"o","anbei",null,"o","über Bank",null,null,"Unterschrift Spieler / in"]
[null,"DSAB-Nr.: ",null,null,null,null,null,null,null,null,null,null,null,null,null,"zurückliegende Klasse:",null,null,null,null,null,null,"DSAB-Nr.: ",null,null,null,null,null,null,null,null,null,null,null,null,null,"zurückliegende Klasse:"]
[null,"Vorname / Name:",null,null,null,null,null,null,null,null,null,null,null,null,null,null,null,null,null,null,null,null,"Vorname / Name:"]
[null,"Strasse / Nr.:",null,null,null,null,null,null,null,null,null,null,null,null,null,null,null,null,null,null,null,null,"Strasse / Nr.:"]
[null,"PLZ / Ort:",null,null,null,null,null,null,null,null,null,null,null,null,null,null,null,null,null,null,null,null,"PLZ / Ort:"]
[null,"Geburtsdatum: ",null,null,null,null,null,null,null,null,null,"Telefon*: ",null,null,null,null,null,null,null,null,null,null,"Geburtsdatum: ",null,null,null,null,null,null,null,null,null,"Telefon*: "]
[null,"eMail*: ",null,null,null,null,null,null,null,null,null,null,null,null,null,null,null,null,null,null,null,null,"eMail*: "]
[null,"Internetzugang*:",null,null,null,null,"o","ja","o","nein",null,null,null,null,null,null,null,null,null,null,null,null,"Internetzugang*:",null,null,null,null,"o","ja","o","nein"]
[null,"Beitrag 7 €: ",null,null,"o","anbei",null,"o","über Bank",null,null,"Unterschrift Spieler / in",null,null,null,null,null,null,null,null,null,null,"Beitrag 7 €: ",null,null,"o","anbei",null,"o","über Bank",null,null,"Unterschrift Spieler / in"]
["Liga-Gaststätte",null,null,null,null,null,null,null,null,null,null,null,null,null,null,null,null,null,null,null,null,"Für die Richtigkeit:"]
[null,"Name:"]
[null,"Strasse / Nr.:"]
[null,null,null,null,null,null,null,null,null,null,null,null,null,null,null,null,null,null,null,null,null,null,"Datum",null,null,null,null,"Unterschrift Kapitän"]
[null,"PLZ / Ort:",null,null,null,null,null,null,null,null,null,null,null,null,null,null,null,null,null,null,null,null,"Stempel vom Automatenunternehmer"]
[null,"Telefon-Nr.:"]
[null,"Fax-Nr.:"]
[null,"eMail:"]
[null,"Anzahl Dartgeräte im Lokal:",null,null,null,null,null,null,null,null,"Stück"]
[null,"geöffnet ab:",null,null,null,null,null,"Uhr.",null,null,null,"Ruhetag:",null,null,null,null,null,null,null,null,null,null,"(ohne Stempel ist die Anmeldung nicht gültig)"]

{"sheet":"Wichtig - Bestätigung - eMail","index":2,"n_rows":56,"n_cols":44,"rows_kept":56,"cut":false,"hidden":false,"merged":[[0,40,55,40],[38,0,38,38],[11,2,11,38],[33,0,33,1],[30,0,30,39],[36,34,36,37],[20,1,20,38],[21,1,21,38],[19,0,19,39],[1,22,1,39],[6,0,6,39],[8,0,8,39],[4,37,4,38],[4,33,4,36],[2,24,2,28],[2,32,2,36],[7,24,7,39],[4,12,4,20],[4,25,4,28],[15,2,15,38],[12,2,12,38],[14,2,14,38],[4,4,4,8],[9,1,9,38],[10,2,10,38],[13,2,13,38],[7,5,7,17],[16,2,16,38],[18,2,18,38],[39,0,39,39],[34,0,34,1],[35,0,35,30],[35,34,35,37],[36,0,36,31],[17,2,17,38],[34,11,34,31],[33,15,33,31],[25,1,25,38],[26,1,26,38],[27,1,27,38],[22,1,22,38],[23,1,23,38],[24,1,24,38],[46,0,46,39],[47,0,47,39],[45,0,45,39],[44,0,44,39],[42,0,42,39],[43,0,43,39],[41,0,41,39],[40,0,40,39],[28,0,28,39],[29,6,29,7],[29,8,29,39],[31,0,31,38],[32,34,32,37],[33,34,33,37],[34,34,34,37],[55,27,55,39],[54,0,55,20],[48,0,48,39],[55,22,55,25],[53,22,54,25],[52,0,52,39],[50,0,50,39],[51,0,51,39],[49,0,49,39]]}
[null,null,null,null,null,null,null,null,null,null,null,null,null,null,null,null,null,null,null,null,null,null,null,null,null,null,null,null,null,null,null,null,null,null,null,null,null,null,null,"DSAB Filstal-Liga",{"$f":"'1.-8. Spieler'!AO1:AO55","v":"Copyright by DSAB-Filstal-Liga - V1.7 - Original für Ligasekretär. Eine Kopie für Automatenunternehmer und eine Kopie für Team erstellen! - ***Falls keine Auswahl erfolgt Versand zum Wirt - **Kostenpflichtig - * freiwillige Angaben (Ausnahme Kapitän)"}]
[null,null,null,null,null,null,null,null,null,null,null,null,null,null,null,null,null,null,null,null,null,null,"Team-Anmeldung"]
[null,null,null,null,null,null,null,null,null,null,null,null,null,null,null,null,null,null,null,null,null,null,"Seite ",null,{"$f":"IF('Wichtig - Bestätigung - eMail'!A34>8,\"3\",\"2\")","v":"2"},null,null,null,null,null,"von",null,{"$f":"'1.-8. Spieler'!AG3:AK3","v":"2"},null,null,null,null,null,"Seiten"]
[]
[null,"Saison:",null,null,{"$f":"'1.-8. Spieler'!E5:I5","v":0},null,null,null,null,null,"Klasse:",null,{"$f":"'1.-8. Spieler'!M5:U5","v":0},null,null,null,null,null,null,null,null,null,"Sportart:",null,null,"Dart",null,null,null,null,"Disziplin:",null,null,{"$f":"'1.-8. Spieler'!AH5:AK5","v":0},null,null,null,{"$f":"A34","v":0}]
[]
["Team"]
[null,"Team-Name:",null,null,null,{"$f":"'1.-8. Spieler'!F8:R8","v":0},null,null,null,null,null,null,null,null,null,null,null,null,null,null,null,"Kapitän:",null,null,{"$f":"'1.-8. Spieler'!F9","v":0}]
["Allgemeine Informationen zur Anmeldung in der DSAB-Filstal-Liga"]
[null,"Um eine geordnete Vorbereitung zu gewährleisten sind unbedingt folgende Punkte zu beachten:"]
[null,"l","NEU: Anmeldeschluss ist immer 16 Tage nach dem letzten Spiel der Hauptrunde !"]
[null,"l","Verbindliche Anmeldung besteht aus Team-Anmeldung + Blatt Zusatzinfos ! (ab 9 Spieler 3-seitig)."]
[null,"l","Bei mehreren Anmeldungen vom gleichen Lokal sollen sich die Teams zwecks Automatenbelegung abstimmen!"]
[null,"l","Anmeldungen müssen leserlich in Druckschrift (oder im Computer) und vollständig ausgefüllt werden."]
[null,"l","Bei neuen Spielern ist ein Passbild beizulegen (Rückseite mit Team-Name, Name, Geb.Datum beschriften)."]
[null,"l","Jeder Spieler muss unterschreiben, sonst ist keine Teilnahme möglich."]
[null,"l","Ohne Stempel eures Aufstellers ist die Anmeldung ungültig - rechtzeitig ausfüllen und abstempeln lassen!"]
[null,"l","Original der Anmeldung an die Ligaleitung schicken und Kopie für Aufsteller und Team erstellen."]
[null,"l","Anmeldungen incl. aller Zahlungen die zum Stichtag nicht vorliegen nehmen am Spielbetrieb nicht teil."]
["Einrichtung einer  eMail-Adresse für Euer Team"]
[null,"Zur verbesserten Kommunikation innerhalb Eurer Gruppe / Filstal-Liga bieten wir die Einrichtung teambezogener"]
[null,"eMail-Adressen an. Die eMail-Adressen werden als Weiterleitungsadressen angelegt. Es können bis zu 10 Weiter-"]
[null,"leitungs-Adressen eingerichtet werden. Diese sollten auch ausgenutzt werden. Dadurch ist auch im Urlaub- bzw. "]
[null,"Krankheitsfall gewährleistet, dass jemand Euer Team erreichen kann."]
[null,"Sendet an Webmaster@Filstalliga.de folgende Infos:"]
[null,"1. Die gewünschte eMail-Adresse für Euer Team  (Beispiel: MusterBoys@Filstalliga.de)"]
[null,"2. Die eMail-Adressen an die eingehende Nachrichten weitergeleitet werden sollen."]
[]
["Da die Angaben eMail-Adresse + Tel.Nr. (Ausnahme Kapitän) freiweillig ist benötigen wir folgende Info:"]
["Von uns haben",null,null,null,null,null,null,null,"Personen privat, beruflich oder über Freunde regelmässig Zugriff auf die Tabellen im Internet."]
["Startgeld / Kaution / Mitgliedsbeitag DSAB / Verwaltungskosten"]
["Abrechnung der Startgelder/Gebühren erfolgt über den Automatenaufsteller. Der verrechnet dies mit dem Gastwirt."]
["Kautionssumme muss vor der Saison 52 € betragen. Neue/aufzufüllende Kautionssumme:",null,null,null,null,null,null,null,null,null,null,null,null,null,null,null,null,null,null,null,null,null,null,null,null,null,null,null,null,null,null,null,null,null,null,null,null,null,"€",null,null,null,null,{"$f":"A34+1","v":1}]
[null,null,"angemeldete Spieler á",null,null,null,null,null,null,7,"€ Saisonbeitrag:",null,null,null,null,null,null,null,null,null,null,null,null,null,null,null,null,null,null,null,null,null,null,null,{"$f":"SUM(A34*J34)","v":0},null,null,null,"€"]
[null,null,"neue Spielerpässe á",null,null,null,null,null,null,6,"€ ",null,null,null,null,null,null,null,null,null,null,null,null,null,null,null,null,null,null,null,null,null,null,null,{"$f":"SUM(A35*J35)","v":0},null,null,null,"€"]
["Kosten Tabellen- und Infoversand (Selbstabholer Internet 0 €, per Fax 14 €, per Post 35 €)",null,null,null,null,null,null,null,null,null,null,null,null,null,null,null,null,null,null,null,null,null,null,null,null,null,null,null,null,null,null,null,null,null,{"$f":"IF(AQ36=\"x\",14,IF(AQ37=\"x\",35,IF(AQ38=\"x\",0,\"\")))","v":""},null,null,null,"€",null,null,null,{"$f":"'1.-8. Spieler'!AG11","v":"o"},"Fax"]
["Bei Überweisungen unbedingt den Team-Namen, ggf. die Klasse/Gruppe angeben !",null,null,null,null,null,null,null,null,null,null,null,null,null,null,null,null,null,null,null,null,null,null,null,null,null,null,null,null,null,null,null,null,"Total:",{"$f":"SUM(AI32:AL36)","v":0},null,null,null,"€",null,null,null,{"$f":"'1.-8. Spieler'!AK11","v":"o"},"Post"]
["Überweisung vor Anmeldeschluss an die Filstal-Liga, IBAN: DE64 6106 0500 0257 6930 09 BIC: GENODES1VGP",null,null,null,null,null,null,null,null,null,null,null,null,null,null,null,null,null,null,null,null,null,null,null,null,null,null,null,null,null,null,null,null,null,null,null,null,null,null,null,null,null,{"$f":"'1.-8. Spieler'!Y11","v":"o"},"selbst"]
["Bargeldübermittlung nur bei persönlicher Übergabe empfohlen, alles andere erfolgt auf eigenes Risiko."]
["Wichtige Zusatzinfos für den Ligasekretär"]
[]
[]
[]
["Datenschutz"]
["Alle Daten werden nach den aktuellen Datenschutzrichtlinien vertraulich behandelt."]
["Für die Richtigkeit"]
["Im Namen meines Teams bestätige ich die Richtigkeit aller angegebenen Daten. Uns ist bekannt, dass die DSAB-Regeln nur in Verbindung mit"]
["den Zusatzregeln der Filstal-Liga gelten. Die aktuellen Regeln liegen uns vor bzw. können unter www.Filstalliga.de eingesehen werden. "]
["Wir verpflichten uns nach diesen Regeln sportlich-fair am Spielbetrieb teilzunehmen. Sofern sich an den Stammdaten der Spieler/Spielort etwas "]
["ändert wird dies der Ligaleitung umgehend mitgeteilt. Das Siegerteam übermittelt das Ergebnis bis spätestens am Folgetag um 11 Uhr. "]
["Die Telefonnummer des Kapitäns darf im Internet und auf den Spielplänen veröffentlicht werden. Wir verpflichten uns den Spielberichtsbogen"]
["immer vollständig auszufüllen  (Vor- und Zunamen, Passnummern, Team-Name, Kapitän). Es ist bekannt, dass die Pässe immer mitzuführen"]
["sind. Bei Verhinderung werde ich die Kapitänsaufgaben übertragen."]
[]
[]
[null,null,null,null,null,null,null,null,null,null,null,null,null,null,null,null,null,null,null,null,null,null,"Datum",null,null,null,null,"Unterschrift Kapitän"]

{"sheet":"ab 9. Spieler","index":3,"n_rows":55,"n_cols":41,"rows_kept":55,"cut":false,"hidden":false,"merged":[[0,40,54,40],[49,22,49,39],[54,22,54,39],[1,22,1,39],[12,0,12,39],[6,0,6,39],[36,11,36,20],[44,11,44,20],[28,11,28,20],[20,11,20,20],[18,3,18,18],[48,22,48,25],[48,27,48,38],[46,5,46,17],[47,1,48,4],[47,5,48,17],[46,22,47,25],[28,32,28,39],[20,32,20,39],[24,25,24,39],[25,26,25,29],[25,33,25,39],[26,24,26,39],[22,27,22,39],[23,26,23,39],[8,5,8,17],[10,6,10,14],[10,16,10,20],[13,16,13,18],[2,24,2,28],[2,32,2,36],[4,12,4,20],[4,25,4,28],[21,37,21,39],[4,37,4,38],[7,25,7,38],[8,25,8,38],[17,5,17,8],[17,12,17,18],[4,4,4,8],[4,33,4,36],[9,8,9,10],[7,5,7,17],[13,4,13,9],[18,24,18,39],[17,26,17,29],[17,33,17,39],[16,4,16,18],[15,26,15,39],[15,5,15,18],[16,25,16,39],[13,25,13,30],[13,37,13,39],[14,27,14,39],[49,5,49,17],[50,5,50,17],[29,25,29,30],[29,37,29,39],[30,27,30,39],[31,26,31,39],[32,4,32,18],[32,25,32,39],[21,25,21,30],[31,5,31,18],[36,32,36,39],[33,26,33,29],[33,33,33,39],[44,32,44,39],[45,21,45,39],[38,27,38,39],[39,26,39,39],[34,24,34,39],[51,5,51,17],[52,5,52,17],[53,8,53,9],[54,5,54,6],[14,6,14,18],[45,0,45,18],[24,4,24,18],[25,5,25,8],[25,12,25,18],[21,4,21,9],[21,16,21,18],[22,6,22,18],[23,5,23,18],[29,16,29,18],[30,6,30,18],[29,4,29,9],[26,3,26,18],[33,5,33,8],[33,12,33,18],[54,1,54,4],[54,12,54,17],[38,6,38,18],[39,5,39,18],[34,3,34,18],[37,4,37,9],[37,16,37,18],[37,25,37,30],[37,37,37,39],[42,3,42,18],[42,24,42,39],[40,4,40,18],[40,25,40,39],[41,5,41,8],[41,12,41,18],[41,26,41,29],[41,33,41,39]]}
[null,null,null,null,null,null,null,null,null,null,null,null,null,null,null,null,null,null,null,null,null,null,null,null,null,null,null,null,null,null,null,null,null,null,null,null,null,null,null,"DSAB Filstal-Liga",{"$f":"'1.-8. Spieler'!AO1:AO55","v":"Copyright by DSAB-Filstal-Liga - V1.7 - Original für Ligasekretär. Eine Kopie für Automatenunternehmer und eine Kopie für Team erstellen! - ***Falls keine Auswahl erfolgt Versand zum Wirt - **Kostenpflichtig - * freiwillige Angaben (Ausnahme Kapitän)"}]
[null,null,null,null,null,null,null,null,null,null,null,null,null,null,null,null,null,null,null,null,null,null,"Team-Anmeldung"]
[null,null,null,null,null,null,null,null,null,null,null,null,null,null,null,null,null,null,null,null,null,null,"Seite ",null,2,null,null,null,null,null,"von",null,{"$f":"'1.-8. Spieler'!AG3:AK3","v":"2"},null,null,null,null,null,"Seiten"]
[]
[null,"Saison:",null,null,{"$f":"'1.-8. Spieler'!E5:I5","v":0},null,null,null,null,null,"Klasse:",null,{"$f":"'1.-8. Spieler'!M5:U5","v":0},null,null,null,null,null,null,null,null,null,"Sportart:",null,null,"Dart",null,null,null,null,"Disziplin:",null,null,{"$f":"'1.-8. Spieler'!AH5:AK5","v":0},null,null,null,{"$f":"'Wichtig - Bestätigung - eMail'!A34","v":0}]
[]
["Team"]
[null,"Team-Name:",null,null,null,{"$f":"'1.-8. Spieler'!F8:R8","v":0},null,null,null,null,null,null,null,null,null,null,null,null,null,null,null,"Team-Fax:",null,null,null,{"$f":"'1.-8. Spieler'!Z8:AM8","v":0}]
[null,"Kapitän:",null,null,null,{"$f":"'1.-8. Spieler'!F9:R9","v":0},null,null,null,null,null,null,null,null,null,null,null,null,null,null,null,"Team-eMail:",null,null,null,{"$f":"'1.-8. Spieler'!Z9:AM9","v":0}]
[null,"Beginn der Liga-Spiele um",null,null,null,null,null,null,{"$f":"'1.-8. Spieler'!I10:K10","v":"00:00:00"},null,null,"Uhr.",null,null,null,null,null,null,null,null,null,"Ligapost Empfänger***:",null,null,null,null,null,null,{"$f":"'1.-8. Spieler'!AC10","v":"o"},"Kapitän",null,null,{"$f":"'1.-8. Spieler'!AG10","v":"o"},"Wirt"]
[null,"alter Team-Name:",null,null,null,null,{"$f":"'1.-8. Spieler'!G11:O11","v":0},null,null,null,null,null,null,null,null,"/",{"$f":"'1.-8. Spieler'!Q11:U11","v":0},null,null,null,null,"Tabelle:",null,null,{"$f":"'1.-8. Spieler'!Y11","v":"o"},"Selbstabholer Internet",null,null,null,null,null,null,{"$f":"'1.-8. Spieler'!AG11","v":"o"},"Fax**",null,null,{"$f":"'1.-8. Spieler'!AK11","v":"o"},"Post**"]
[null,"(falls Team-Name verändert wurde)",null,null,null,null,null,null,null,null,null,null,null,null,null,null,null,null,null,"(letzte Liga-Klasse)",null,"B/C-Liga-Spiele auf:",null,null,null,null,null,{"$f":"'1.-8. Spieler'!AB12","v":"o"},"1 Automat",null,null,{"$f":"'1.-8. Spieler'!AF12","v":"o"},"2 Automaten wenn Gast zustimmt"]
[{"$f":"'1.-8. Spieler'!A13:AN13","v":"Spieler - Wichtig: Im Feld \"zurückliegende Klasse\" bitte  C / B / A / BZ / BZO / BL / NEU oder ? eintragen !"}]
[null,"DSAB-Nr.: ",null,null,null,null,null,null,null,null,null,null,null,null,null,"zurückliegende Klasse:",null,null,null,null,null,null,"DSAB-Nr.: ",null,null,null,null,null,null,null,null,null,null,null,null,null,"zurückliegende Klasse:"]
[null,"Vorname / Name:",null,null,null,null,null,null,null,null,null,null,null,null,null,null,null,null,null,null,null,null,"Vorname / Name:"]
[null,"Strasse / Nr.:",null,null,null,null,null,null,null,null,null,null,null,null,null,null,null,null,null,null,null,null,"Strasse / Nr.:"]
[null,"PLZ / Ort:",null,null,null,null,null,null,null,null,null,null,null,null,null,null,null,null,null,null,null,null,"PLZ / Ort:"]
[null,"Geburtsdatum: ",null,null,null,null,null,null,null,null,null,"Telefon*: ",null,null,null,null,null,null,null,null,null,null,"Geburtsdatum: ",null,null,null,null,null,null,null,null,null,"Telefon*: "]
[null,"eMail*: ",null,null,null,null,null,null,null,null,null,null,null,null,null,null,null,null,null,null,null,null,"eMail*: "]
[null,"Internetzugang*:",null,null,null,null,"o","ja","o","nein",null,null,null,null,null,null,null,null,null,null,null,null,"Internetzugang*:",null,null,null,null,"o","ja","o","nein"]
[null,"Beitrag 7 €: ",null,null,"o","anbei",null,"o","über Bank",null,null,"Unterschrift Spieler / in",null,null,null,null,null,null,null,null,null,null,"Beitrag 7 €: ",null,null,"o","anbei",null,"o","über Bank",null,null,"Unterschrift Spieler / in"]
[null,"DSAB-Nr.: ",null,null,null,null,null,null,null,null,null,null,null,null,null,"zurückliegende Klasse:",null,null,null,null,null,null,"DSAB-Nr.: ",null,null,null,null,null,null,null,null,null,null,null,null,null,"zurückliegende Klasse:"]
[null,"Vorname / Name:",null,null,null,null,null,null,null,null,null,null,null,null,null,null,null,null,null,null,null,null,"Vorname / Name:"]
[null,"Strasse / Nr.:",null,null,null,null,null,null,null,null,null,null,null,null,null,null,null,null,null,null,null,null,"Strasse / Nr.:"]
[null,"PLZ / Ort:",null,null,null,null,null,null,null,null,null,null,null,null,null,null,null,null,null,null,null,null,"PLZ / Ort:"]
[null,"Geburtsdatum: ",null,null,null,null,null,null,null,null,null,"Telefon*: ",null,null,null,null,null,null,null,null,null,null,"Geburtsdatum: ",null,null,null,null,null,null,null,null,null,"Telefon*: "]
[null,"eMail*: ",null,null,null,null,null,null,null,null,null,null,null,null,null,null,null,null,null,null,null,null,"eMail*: "]
[null,"Internetzugang*:",null,null,null,null,"o","ja","o","nein",null,null,null,null,null,null,null,null,null,null,null,null,"Internetzugang*:",null,null,null,null,"o","ja","o","nein"]
[null,"Beitrag 7 €: ",null,null,"o","anbei",null,"o","über Bank",null,null,"Unterschrift Spieler / in",null,null,null,null,null,null,null,null,null,null,"Beitrag 7 €: ",null,null,"o","anbei",null,"o","über Bank",null,null,"Unterschrift Spieler / in"]
[null,"DSAB-Nr.: ",null,null,null,null,null,null,null,null,null,null,null,null,null,"zurückliegende Klasse:",null,null,null,null,null,null,"DSAB-Nr.: ",null,null,null,null,null,null,null,null,null,null,null,null,null,"zurückliegende Klasse:"]
[null,"Vorname / Name:",null,null,null,null,null,null,null,null,null,null,null,null,null,null,null,null,null,null,null,null,"Vorname / Name:"]
[null,"Strasse / Nr.:",null,null,null,null,null,null,null,null,null,null,null,null,null,null,null,null,null,null,null,null,"Strasse / Nr.:"]
[null,"PLZ / Ort:",null,null,null,null,null,null,null,null,null,null,null,null,null,null,null,null,null,null,null,null,"PLZ / Ort:"]
[null,"Geburtsdatum: ",null,null,null,null,null,null,null,null,null,"Telefon*: ",null,null,null,null,null,null,null,null,null,null,"Geburtsdatum: ",null,null,null,null,null,null,null,null,null,"Telefon*: "]
[null,"eMail*: ",null,null,null,null,null,null,null,null,null,null,null,null,null,null,null,null,null,null,null,null,"eMail*: "]
[null,"Internetzugang*:",null,null,null,null,"o","ja","o","nein",null,null,null,null,null,null,null,null,null,null,null,null,"Internetzugang*:",null,null,null,null,"o","ja","o","nein"]
[null,"Beitrag 7 €: ",null,null,"o","anbei",null,"o","über Bank",null,null,"Unterschrift Spieler / in",null,null,null,null,null,null,null,null,null,null,"Beitrag 7 €: ",null,null,"o","anbei",null,"o","über Bank",null,null,"Unterschrift Spieler / in"]
[null,"DSAB-Nr.: ",null,null,null,null,null,null,null,null,null,null,null,null,null,"zurückliegende Klasse:",null,null,null,null,null,null,"DSAB-Nr.: ",null,null,null,null,null,null,null,null,null,null,null,null,null,"zurückliegende Klasse:"]
[null,"Vorname / Name:",null,null,null,null,null,null,null,null,null,null,null,null,null,null,null,null,null,null,null,null,"Vorname / Name:"]
[null,"Strasse / Nr.:",null,null,null,null,null,null,null,null,null,null,null,null,null,null,null,null,null,null,null,null,"Strasse / Nr.:"]
[null,"PLZ / Ort:",null,null,null,null,null,null,null,null,null,null,null,null,null,null,null,null,null,null,null,null,"PLZ / Ort:"]
[null,"Geburtsdatum: ",null,null,null,null,null,null,null,null,null,"Telefon*: ",null,null,null,null,null,null,null,null,null,null,"Geburtsdatum: ",null,null,null,null,null,null,null,null,null,"Telefon*: "]
[null,"eMail*: ",null,null,null,null,null,null,null,null,null,null,null,null,null,null,null,null,null,null,null,null,"eMail*: "]
[null,"Internetzugang*:",null,null,null,null,"o","ja","o","nein",null,null,null,null,null,null,null,null,null,null,null,null,"Internetzugang*:",null,null,null,null,"o","ja","o","nein"]
[null,"Beitrag 7 €: ",null,null,"o","anbei",null,"o","über Bank",null,null,"Unterschrift Spieler / in",null,null,null,null,null,null,null,null,null,null,"Beitrag 7 €: ",null,null,"o","anbei",null,"o","über Bank",null,null,"Unterschrift Spieler / in"]
["Liga-Gaststätte",null,null,null,null,null,null,null,null,null,null,null,null,null,null,null,null,null,null,null,null,"Für die Richtigkeit:"]
[null,"Name:",null,null,null,{"$f":"'1.-8. Spieler'!F47:R47","v":0}]
[null,"Strasse / Nr.:",null,null,null,{"$f":"'1.-8. Spieler'!F48:R49","v":0}]
[null,null,null,null,null,null,null,null,null,null,null,null,null,null,null,null,null,null,null,null,null,null,"Datum",null,null,null,null,"Unterschrift Kapitän"]
[null,"PLZ / Ort:",null,null,null,{"$f":"'1.-8. Spieler'!F51:R51","v":0},null,null,null,null,null,null,null,null,null,null,null,null,null,null,null,null,"Stempel vom Automatenunternehmer"]
[null,"Telefon-Nr.:",null,null,null,{"$f":"'1.-8. Spieler'!F51:R51","v":0}]
[null,"Fax-Nr.:",null,null,null,{"$f":"'1.-8. Spieler'!F52:R52","v":0}]
[null,"eMail:",null,null,null,{"$f":"'1.-8. Spieler'!F53:R53","v":0}]
[null,"Anzahl Dartgeräte im Lokal:",null,null,null,null,null,null,{"$f":"'1.-8. Spieler'!I54:J54","v":0},null,"Stück"]
[null,"geöffnet ab:",null,null,null,{"$f":"'1.-8. Spieler'!F55:G55","v":0},null,"Uhr.",null,null,null,"Ruhetag:",{"$f":"'1.-8. Spieler'!M55:R55","v":0},null,null,null,null,null,null,null,null,null,"(ohne Stempel ist die Anmeldung nicht gültig)"]